Workbook

Sheet Dashboard
M3: 2022
M4: SEPTIEMBRE
A5: Acumulado a: | B5: =M4 -> SEPTIEMBRE | E5: Datos acumulados | G5: Cuota Negocio / Total ASEMPLEO | J5: =empresa_ccaa!L5 -> iEMPRESA | L5: ¿▲"sin" mi Empresa?
A6: Total | B6: Facturación, € | D6: (a) | E6: =J5 -> iEMPRESA | I6: Cuota de Facturación | J6: ∆ | L6: (b) | M6: ∆ (a-b) | IS6: Empresa - Sector | IT6: Empresa - Sector
B7: 2021 | C7: 2022 | D7: % i.a. | E7: =B7 -> 2021 | F7: =C7 -> 2022 | G7: % i.a. | H7: =E7 -> 2021 | I7: =F7 -> 2022 | J7: Dif.P.P. | L7: % i.a. | M7: Dif.P.P. | IT7: p.p.
A8: Nacional | B8: =empresa_ccaa!F12 -> 2943385823 | C8: =empresa_ccaa!G12 -> 3058142619 | D8: =((C8/B8)-1) -> 0.03898802376 | E8: =empresa_ccaa!K12 -> 0 | F8: =empresa_ccaa!L12 -> 0 | G8: =IF(E8>0,((F8/E8)-1),"n.a.") -> n.a. | H8: =E8/B8 -> 0 | I8: =F8/C8 -> 0 | J8: =(I8-H8)*100 -> 0 | L8: =((C8-F8)/(B8-E8))-1 -> 0.03898802376 | M8: =(D8-L8)*100 -> 0 | IT8: Puntos porcentuales
A9: ANDALUCIA | B9: =empresa_ccaa!F13 -> 288385221.8 | C9: =empresa_ccaa!G13 -> 278728568.1 | D9: =((C9/B9)-1) -> -0.03348525826 | E9: =empresa_ccaa!K13 -> 0 | F9: =empresa_ccaa!L13 -> 0 | G9: n.a. | H9: =E9/B9 -> 0 | I9: =F9/C9 -> 0 | J9: =(I9-H9)*100 -> 0 | L9: =((C9-F9)/(B9-E9))-1 -> -0.03348525826 | M9: 0 | IS9: Dif. Ritmo | IT9: Importancia Relativa | IW9: Empresa
A10: ARAGON | B10: =empresa_ccaa!F14 -> 146860336.8 | C10: =empresa_ccaa!G14 -> 160364139 | D10: =((C10/B10)-1) -> 0.0919499605 | E10: =empresa_ccaa!K14 -> 0 | F10: =empresa_ccaa!L14 -> 0 | G10: n.a. | H10: 0 | I10: 0 | J10: 0 | L10: 0.0919499605 | M10: 0 | IS10: =IF(G8="n.a.","n.a.",(G8-D8)*100) -> n.a. | IT10: =empresa_ccaa!M12-empresa_ccaa!H12 ->  | IV10: criterio_rank | IW10: peso | IX10: Comunidad | IY10: % i.a. | IZ10: Total_Regional
A11: ASTURIAS | B11: =empresa_ccaa!F15 -> 56483788.24 | C11: =empresa_ccaa!G15 -> 56515605.61 | D11: 0.0005633010659 | E11: =empresa_ccaa!K15 -> 0 | F11: =empresa_ccaa!L15 -> 0 | G11: n.a. | H11: 0 | I11: 0 | J11: 0 | L11: 0.0005633010659 | M11: 0 | IS11: =IF(G9="n.a.","n.a.",(G9-D9)*100) -> n.a. | IT11: =empresa_ccaa!M13-empresa_ccaa!H13 ->  | IV11: =IF(IW11=$IW$29,1,0) -> 1 | IW11: =I9 -> 0 | IX11: =A9 -> ANDALUCIA | IY11: =G9 -> n.a. | IZ11: =D9 -> -0.03348525826
A12: BALEARES | B12: =empresa_ccaa!F16 -> 9969665.208 | C12: =empresa_ccaa!G16 -> 13221600.82 | D12: 0.3261830301 | E12: =empresa_ccaa!K16 -> 0 | F12: =empresa_ccaa!L16 -> 0 | G12: =IF(E12>0,((F12/E12)-1),"n.a.") -> n.a. | H12: 0 | I12: 0 | J12: 0 | L12: 0.3261830301 | M12: 0 | IS12: =IF(G10="n.a.","n.a.",(G10-D10)*100) -> n.a. | IT12: =empresa_ccaa!M14-empresa_ccaa!H14 ->  | IV12: =IF(IW12=$IW$29,1,0) -> 1 | IW12: =I10 -> 0 | IX12: =A10 -> ARAGON | IY12: =G10 -> n.a. | IZ12: =D10 -> 0.0919499605
A13: CANARIAS | B13: =empresa_ccaa!F17 -> 36432722.3 | C13: =empresa_ccaa!G17 -> 65856290.37 | D13: 0.8076137659 | E13: =empresa_ccaa!K17 -> 0 | F13: =empresa_ccaa!L17 -> 0 | G13: n.a. | H13: 0 | I13: 0 | J13: 0 | L13: 0.8076137659 | M13: 0 | IS13: =IF(G11="n.a.","n.a.",(G11-D11)*100) -> n.a. | IT13: =empresa_ccaa!M15-empresa_ccaa!H15 ->  | IV13: =IF(IW13=$IW$29,1,0) -> 1 | IW13: =I11 -> 0 | IX13: =A11 -> ASTURIAS | IY13: =G11 -> n.a. | IZ13: =D11 -> 0.0005633010659
A14: CANTABRIA | B14: =empresa_ccaa!F18 -> 79128929.34 | C14: =empresa_ccaa!G18 -> 67902006.94 | D14: -0.1418813889 | E14: =empresa_ccaa!K18 -> 0 | F14: =empresa_ccaa!L18 -> 0 | G14: n.a. | H14: 0 | I14: 0 | J14: 0 | L14: -0.1418813889 | M14: 0 | IS14: =IF(G12="n.a.","n.a.",(G12-D12)*100) -> n.a. | IT14: =empresa_ccaa!M16-empresa_ccaa!H16 ->  | IV14: =IF(IW14=$IW$29,1,0) -> 1 | IW14: =I12 -> 0 | IX14: =A12 -> BALEARES | IY14: =G12 -> n.a. | IZ14: =D12 -> 0.3261830301
A15: CASTILLA-LA MANCHA | B15: =empresa_ccaa!F19 -> 182834678.1 | C15: =empresa_ccaa!G19 -> 200241075.8 | D15: 0.095202934 | E15: =empresa_ccaa!K19 -> 0 | F15: =empresa_ccaa!L19 -> 0 | G15: n.a. | H15: 0 | I15: 0 | J15: 0 | L15: 0.095202934 | M15: 0 | IS15: =IF(G13="n.a.","n.a.",(G13-D13)*100) -> n.a. | IT15: =empresa_ccaa!M17-empresa_ccaa!H17 ->  | IV15: =IF(IW15=$IW$29,1,0) -> 1 | IW15: =I13 -> 0 | IX15: =A13 -> CANARIAS | IY15: =G13 -> n.a. | IZ15: =D13 -> 0.8076137659
A16: CASTILLA Y LEÓN | B16: =empresa_ccaa!F20 -> 159657917.7 | C16: =empresa_ccaa!G20 -> 170327285.3 | D16: 0.06682642304 | E16: =empresa_ccaa!K20 -> 0 | F16: =empresa_ccaa!L20 -> 0 | G16: n.a. | H16: 0 | I16: 0 | J16: =(I16-H16)*100 -> 0 | L16: 0.06682642304 | M16: 0 | IS16: =IF(G14="n.a.","n.a.",(G14-D14)*100) -> n.a. | IT16: =empresa_ccaa!M18-empresa_ccaa!H18 ->  | IV16: =IF(IW16=$IW$29,1,0) -> 1 | IW16: =I14 -> 0 | IX16: =A14 -> CANTABRIA | IY16: =G14 -> n.a. | IZ16: =D14 -> -0.1418813889
A17: CATALUÑA | B17: =empresa_ccaa!F21 -> 690151052.8 | C17: =empresa_ccaa!G21 -> 688655281 | D17: -0.002167310738 | E17: =empresa_ccaa!K21 -> 0 | F17: =empresa_ccaa!L21 -> 0 | G17: =IF(E17>0,((F17/E17)-1),"n.a.") -> n.a. | H17: 0 | I17: 0 | J17: =(I17-H17)*100 -> 0 | L17: -0.002167310738 | M17: 0 | IS17: =IF(G15="n.a.","n.a.",(G15-D15)*100) -> n.a. | IT17: =empresa_ccaa!M19-empresa_ccaa!H19 ->  | IV17: =IF(IW17=$IW$29,1,0) -> 1 | IW17: =I15 -> 0 | IX17: =A15 -> CASTILLA-LA MANCHA | IY17: =G15 -> n.a. | IZ17: =D15 -> 0.095202934
A18: COMUNIDAD VALENCIANA | B18: =empresa_ccaa!F22 -> 256334925.8 | C18: =empresa_ccaa!G22 -> 283739192.1 | D18: 0.1069080472 | E18: =empresa_ccaa!K22 -> 0 | F18: =empresa_ccaa!L22 -> 0 | G18: n.a. | H18: 0 | I18: 0 | J18: =(I18-H18)*100 -> 0 | L18: 0.1069080472 | M18: 0 | IS18: =IF(G16="n.a.","n.a.",(G16-D16)*100) -> n.a. | IT18: =empresa_ccaa!M20-empresa_ccaa!H20 ->  | IV18: =IF(IW18=$IW$29,1,0) -> 1 | IW18: =I16 -> 0 | IX18: =A16 -> CASTILLA Y LEÓN | IY18: =G16 -> n.a. | IZ18: =D16 -> 0.06682642304
A19: EXTREMADURA | B19: =empresa_ccaa!F23 -> 38973092.7 | C19: =empresa_ccaa!G23 -> 32927717.9 | D19: -0.15511663 | E19: =empresa_ccaa!K23 -> 0 | F19: =empresa_ccaa!L23 -> 0 | G19: n.a. | H19: 0 | I19: 0 | J19: 0 | L19: -0.15511663 | M19: 0 | IS19: =IF(G17="n.a.","n.a.",(G17-D17)*100) -> n.a. | IT19: =empresa_ccaa!M21-empresa_ccaa!H21 ->  | IV19: =IF(IW19=$IW$29,1,0) -> 1 | IW19: =I17 -> 0 | IX19: =A17 -> CATALUÑA | IY19: =G17 -> n.a. | IZ19: =D17 -> -0.002167310738
A20: GALICIA | B20: =empresa_ccaa!F24 -> 110319987.6 | C20: =empresa_ccaa!G24 -> 107430531.3 | D20: -0.02619159355 | E20: =empresa_ccaa!K24 -> 0 | F20: =empresa_ccaa!L24 -> 0 | G20: n.a. | H20: 0 | I20: 0 | J20: 0 | L20: -0.02619159355 | M20: 0 | IS20: =IF(G18="n.a.","n.a.",(G18-D18)*100) -> n.a. | IT20: =empresa_ccaa!M22-empresa_ccaa!H22 ->  | IV20: =IF(IW20=$IW$29,1,0) -> 1 | IW20: =I18 -> 0 | IX20: =A18 -> COMUNIDAD VALENCIANA | IY20: =G18 -> n.a. | IZ20: =D18 -> 0.1069080472
A21: MADRID | B21: =empresa_ccaa!F25 -> 458794609.3 | C21: =empresa_ccaa!G25 -> 485111695.7 | D21: 0.05736136797 | E21: =empresa_ccaa!K25 -> 0 | F21: =empresa_ccaa!L25 -> 0 | G21: n.a. | H21: 0 | I21: 0 | J21: 0 | L21: 0.05736136797 | M21: 0 | IS21: =IF(G19="n.a.","n.a.",(G19-D19)*100) -> n.a. | IT21: =empresa_ccaa!M23-empresa_ccaa!H23 ->  | IV21: =IF(IW21=$IW$29,1,0) -> 1 | IW21: =I19 -> 0 | IX21: =A19 -> EXTREMADURA | IY21: =G19 -> n.a. | IZ21: =D19 -> -0.15511663
A22: MURCIA | B22: =empresa_ccaa!F26 -> 201472138.7 | C22: =empresa_ccaa!G26 -> 200496008.5 | D22: -0.004844988789 | E22: =empresa_ccaa!K26 -> 0 | F22: =empresa_ccaa!L26 -> 0 | G22: n.a. | H22: 0 | I22: 0 | J22: 0 | L22: -0.004844988789 | M22: 0 | IS22: =IF(G20="n.a.","n.a.",(G20-D20)*100) -> n.a. | IT22: =empresa_ccaa!M24-empresa_ccaa!H24 ->  | IV22: =IF(IW22=$IW$29,1,0) -> 1 | IW22: =I20 -> 0 | IX22: =A20 -> GALICIA | IY22: =G20 -> n.a. | IZ22: =D20 -> -0.02619159355
A23: NAVARRA | B23: =empresa_ccaa!F27 -> 79759096.31 | C23: =empresa_ccaa!G27 -> 92409335.33 | D23: 0.1586055962 | E23: =empresa_ccaa!K27 -> 0 | F23: =empresa_ccaa!L27 -> 0 | G23: n.a. | H23: 0 | I23: 0 | J23: 0 | L23: 0.1586055962 | M23: 0 | IS23: =IF(G21="n.a.","n.a.",(G21-D21)*100) -> n.a. | IT23: =empresa_ccaa!M25-empresa_ccaa!H25 ->  | IV23: =IF(IW23=$IW$29,1,0) -> 1 | IW23: =I21 -> 0 | IX23: =A21 -> MADRID | IY23: =G21 -> n.a. | IZ23: =D21 -> 0.05736136797
A24: PAIS VASCO | B24: =empresa_ccaa!F28 -> 125374210.4 | C24: =empresa_ccaa!G28 -> 131534736.2 | D24: 0.04913710501 | E24: =empresa_ccaa!K28 -> 0 | F24: =empresa_ccaa!L28 -> 0 | G24: n.a. | H24: 0 | I24: 0 | J24: 0 | L24: 0.04913710501 | M24: 0 | IS24: =IF(G22="n.a.","n.a.",(G22-D22)*100) -> n.a. | IT24: =empresa_ccaa!M26-empresa_ccaa!H26 ->  | IV24: =IF(IW24=$IW$29,1,0) -> 1 | IW24: =I22 -> 0 | IX24: =A22 -> MURCIA | IY24: =G22 -> n.a. | IZ24: =D22 -> -0.004844988789
A25: RIOJA (LA) | B25: =empresa_ccaa!F29 -> 22453450.01 | C25: =empresa_ccaa!G29 -> 22681549.49 | D25: 0.01015877193 | E25: =empresa_ccaa!K29 -> 0 | F25: =empresa_ccaa!L29 -> 0 | G25: n.a. | H25: 0 | I25: 0 | J25: 0 | L25: 0.01015877193 | M25: 0 | IS25: =IF(G23="n.a.","n.a.",(G23-D23)*100) -> n.a. | IT25: =empresa_ccaa!M27-empresa_ccaa!H27 ->  | IV25: =IF(IW25=$IW$29,1,0) -> 1 | IW25: =I23 -> 0 | IX25: =A23 -> NAVARRA | IY25: =G23 -> n.a. | IZ25: =D23 -> 0.1586055962
IS26: =IF(G24="n.a.","n.a.",(G24-D24)*100) -> n.a. | IT26: =empresa_ccaa!M28-empresa_ccaa!H28 ->  | IV26: =IF(IW26=$IW$29,1,0) -> 1 | IW26: =I24 -> 0 | IX26: =A24 -> PAIS VASCO | IY26: =G24 -> n.a. | IZ26: =D24 -> 0.04913710501
IS27: =IF(G25="n.a.","n.a.",(G25-D25)*100) -> n.a. | IT27: =empresa_ccaa!M29-empresa_ccaa!H29 ->  | IV27: =IF(IW27=$IW$29,1,0) -> 1 | IW27: =I25 -> 0 | IX27: =A25 -> RIOJA (LA) | IY27: =G25 -> n.a. | IZ27: =D25 -> 0.01015877193
J28: =I6 -> Cuota de Facturación | IV28: codifico=1 | IW28: máximo
M29: =I7 -> 2022 | IV29: =DMAX(IV10:IX27,IW10,IV10:IV27)*1 -> 0 | IW29: =MAX(IW11:IW27) -> 0
B30: % i.a. | F30: % i.a. | IU30: geo data | IV30: =VLOOKUP(1,IV10:IZ27,3,0) -> ANDALUCIA
B31: =C7 -> 2022 | F31: =B31 -> 2022 | IV31: el dato a buscar debe estar en la primera columna.
B32: Total | F32: Empresa | J32: =J5 -> iEMPRESA | IV32: =VLOOKUP(1,IV10:IZ27,4,0)*1 -> 
M33: Ámbito | IV33: =VLOOKUP(1,IV10:IZ27,5,0)*1 -> -0.03348525826
A34: Ámbito | B34: =F34 -> Nacional | F34: =J34 -> Nacional | J34: Nacional | M34: Nacional
J38: =IV30 -> ANDALUCIA | M38: CCAA
M39: Líder para la
B40: % i.a. | F40: % i.a. | M40: Empresa
B41: =B31 -> 2022 | F41: =B41 -> 2022
B42: Total | F42: Empresa | J42: =J32 -> iEMPRESA
A44: Ámbito | B44: =F44 -> ANDALUCIA | F44: =J44 -> ANDALUCIA | J44: =J38 -> ANDALUCIA
A48: Fuente: Cifras consolidadas del sector. Valores absolutos 2015-2022 y cifras de evolución de 2016 a la fecha. ASEMPLEO ©.
A49: Nota de Confidencialidad: Este informe comparativo contiene datos redondeados que son ficticeos y serán reemplazados por los que la Empresa introduzca en "empresa_ccaa".

Sheet Ayuda y Version (hidden)
G2: Versión de plantilla: | H2: 2.5

Sheet pBlock (hidden)
B4: Block Test
B5: Info1 | C5: Info2

Sheet pAccel0 (hidden)
A1: Gauge Configuration | O1: Gauge Configuration | Z1: Gauge Configuration | AK1: Gauge Configuration
F2: Decal | T2: Decal | AE2: Decal | AP2: Decal
A3: Title: | B3: =Dashboard!#REF! ->  | F3: 0 | O3: Title: | P3: =pAccel0!B3 ->  | T3: 0 | Z3: Title: | AA3: Empresa | AE3: 0 | AK3: Title: | AL3: CCAA | AP3: 0
A4: Real Value: | B4: =Dashboard!#REF! ->  | O4: Real Value: | P4: =Dashboard!I8 -> 0 | Z4: Real Value: | AA4: =Dashboard!I8 -> 0 | AK4: Real Value: | AL4: =Dashboard!IV29 -> 0
A6: Color bands | O6: Color bands | Z6: Color bands | AK6: Color bands
A7: Red: | B7: 2 | O7: Red: | P7: 2 | Z7: Red: | AA7: 2 | AK7: Red: | AL7: 2
A8: Yellow: | B8: 15 | O8: Yellow: | P8: 15 | Z8: Yellow: | AA8: 15 | AK8: Yellow: | AL8: 15
A9: Green: | B9: 23 | O9: Green: | P9: 23 | Z9: Green: | AA9: 23 | AK9: Green: | AL9: 23
A11: Advanced Parameters | O11: Advanced Parameters | Z11: Advanced Parameters | AK11: Advanced Parameters
B12: Value to 100% | C12: =IF(ISERROR((B4-F3/100)*B27),0,(B4-F3/100)*B27) -> 0 | P12: Value to 100% | Q12: =IF(ISERROR((P4-T3/100)*P27),0,(P4-T3/100)*P27) -> 0 | AA12: Value to 100% | AB12: =IF(ISERROR((AA4-AE3/100)*AA27),0,(AA4-AE3/100)*AA27) -> 0 | AL12: Value to 100% | AM12: =IF(ISERROR((AL4-AP3/100)*AL27),0,(AL4-AP3/100)*AL27) -> 0
B13: Relative value | C13: =IF(C12>100%,102%,IF(C12<0%,-2%,C12))*1.506-0.253 -> -0.253 | P13: Relative value | Q13: =IF(Q12>100%,102%,IF(Q12<0%,-2%,Q12))*1.506-0.253 -> -0.253 | AA13: Relative value | AB13: =IF(AB12>100%,102%,IF(AB12<0%,-2%,AB12))*1.506-0.253 -> -0.253 | AL13: Relative value | AM13: =IF(AM12>100%,102%,IF(AM12<0%,-2%,AM12))*1.506-0.253 -> -0.253
A15: Angle | C15: =C13*PI() -> -0.7948229414 | O15: Angle | Q15: =Q13*PI() -> -0.7948229414 | Z15: Angle | AB15: =AB13*PI() -> -0.7948229414 | AK15: Angle | AM15: =AM13*PI() -> -0.7948229414
A16: x | B16: 0 | C16: =-COS(C15) -> -0.7004111508 | O16: x | P16: 0 | Q16: =-COS(Q15) -> -0.7004111508 | Z16: x | AA16: 0 | AB16: =-COS(AB15) -> -0.7004111508 | AK16: x | AL16: 0 | AM16: =-COS(AM15) -> -0.7004111508
A17: y | B17: 0 | C17: =SIN(C15) -> -0.7137396023 | O17: y | P17: 0 | Q17: =SIN(Q15) -> -0.7137396023 | Z17: y | AA17: 0 | AB17: =SIN(AB15) -> -0.7137396023 | AK17: y | AL17: 0 | AM17: =SIN(AM15) -> -0.7137396023
D19: Value | E19: Label | R19: Value | S19: Label | AC19: Value | AD19: Label | AN19: Value | AO19: Label
C20: 70 | D20: 10 | E20: =B26+F3 -> 4 | Q20: 70 | R20: 10 | S20: =P26+T3 -> 4 | AB20: 70 | AC20: 10 | AD20: =AA26+AE3 -> 4 | AM20: 70 | AN20: 10 | AO20: =AL26+AP3 -> 4
C21: =B7*$C$20/$B$25 -> 3.5 | D21: 10 | E21: =E20+$B$26 -> 8 | Q21: =P7*$C$20/$B$25 -> 3.5 | R21: 10 | S21: =S20+$B$26 -> 8 | AB21: =AA7*$AB$20/$AA$25 -> 3.5 | AC21: 10 | AD21: =AD20+$AA$26 -> 8 | AM21: =AL7*$AM$20/$AL$25 -> 3.5 | AN21: 10 | AO21: =AO20+$AL$26 -> 8
C22: =B8*$C$20/$B$25 -> 26.25 | D22: 10 | E22: 12 | Q22: =P8*$C$20/$B$25 -> 26.25 | R22: 10 | S22: 12 | AB22: =AA8*$AB$20/$AA$25 -> 26.25 | AC22: 10 | AD22: 12 | AM22: =AL8*$AM$20/$AL$25 -> 26.25 | AN22: 10 | AO22: =AO21+$AL$26 -> 12
C23: =B9*$C$20/$B$25 -> 40.25 | D23: 10 | E23: 16 | Q23: =P9*$C$20/$B$25 -> 40.25 | R23: 10 | S23: 16 | AB23: =AA9*$AB$20/$AA$25 -> 40.25 | AC23: 10 | AD23: 16 | AM23: 40.25 | AN23: 10 | AO23: 16
A24: White | C24: 23 | D24: 10 | E24: 20 | O24: White | Q24: 23 | R24: 10 | S24: 20 | Z24: White | AB24: 23 | AC24: 10 | AD24: 20 | AK24: White | AM24: 23 | AN24: 10 | AO24: 20
A25: Total | B25: =SUM(B7:B24) -> 40 | C25: =SUM(C21:C24) -> 93 | D25: 10 | E25: 24 | O25: Total | P25: =SUM(P7:P24) -> 40 | Q25: =SUM(Q21:Q24) -> 93 | R25: 10 | S25: 24 | Z25: Total | AA25: =SUM(AA7:AA24) -> 40 | AB25: =SUM(AB21:AB24) -> 93 | AC25: 10 | AD25: 24 | AK25: Total | AL25: =SUM(AL7:AL24) -> 40 | AM25: =SUM(AM21:AM24) -> 93 | AN25: 10 | AO25: 24
A26: Increment | B26: =B25/10 -> 4 | D26: 10 | E26: 28 | O26: Increment | P26: =P25/10 -> 4 | R26: 10 | S26: 28 | Z26: Increment | AA26: =AA25/10 -> 4 | AC26: 10 | AD26: 28 | AK26: Increment | AL26: =AL25/10 -> 4 | AN26: 10 | AO26: 28
A27: Conversion | B27: =100/B25 -> 2.5 | D27: 10 | E27: 32 | O27: Conversion | P27: =100/P25 -> 2.5 | R27: 10 | S27: 32 | Z27: Conversion | AA27: =100/AA25 -> 2.5 | AC27: 10 | AD27: 32 | AK27: Conversion | AL27: =100/AL25 -> 2.5 | AN27: 10 | AO27: 32
D28: 10 | E28: 36 | R28: 10 | S28: 36 | AC28: 10 | AD28: 36 | AN28: 10 | AO28: 36
D29: 10 | E29: 40 | R29: 10 | S29: 40 | AC29: 10 | AD29: 40 | AN29: 10 | AO29: 40
D30: 33 | E30: =F3 -> 0 | R30: 33 | S30: =T3 -> 0 | AC30: 33 | AD30: =AE3 -> 0 | AN30: 33 | AO30: =AP3 -> 0

Sheet pAccel1 (hidden)
A1: Gauge Configuration | Q1: Gauge Configuration | X1: Gauge Configuration | AE1: Gauge Configuration | AL1: Gauge Configuration | AS1: Gauge Configuration | AZ1: Gauge Configuration | BG1: Gauge Configuration
F2: Decal | V2: Decal | AC2: Decal | AJ2: Decal | AQ2: Decal | AX2: Decal | BE2: Decal | BL2: Decal
A3: Title: | B3: CPDs | F3: 100 | Q3: Title: | R3: Facturación | V3: 100 | X3: Title: | Y3: CPDs | AC3: 100 | AE3: Title: | AF3: Facturación | AJ3: 100 | AL3: Title: | AM3: Facturación | AQ3: 100 | AS3: Title: | AT3: Facturación | AX3: 100 | AZ3: Title: | BA3: Facturación | BE3: 100 | BG3: Title: | BH3: Facturación | BL3: 100
A4: Real Value: | B4: =Dashboard!#REF! ->  | C4: =Dashboard!#REF! ->  | Q4: Real Value: | R4: =Dashboard!#REF! ->  | X4: Real Value: | Y4: =Dashboard!#REF! ->  | AE4: Real Value: | AF4: =Dashboard!#REF! ->  | AL4: Real Value: | AM4: =Dashboard!D8 -> 0.03898802376 | AS4: Real Value: | AT4: =Dashboard!$G$8 -> n.a. | AZ4: Real Value: | BA4: =Dashboard!IV33 -> -0.03348525826 | BG4: Real Value: | BH4: =Dashboard!IV32 -> 
A6: Color bands
A7: Red: | B7: -50
A8: Yellow: | B8: 0
A9: Green: | B9: 50
A11: Advanced Parameters | Q11: Advanced Parameters | X11: Advanced Parameters | AE11: Advanced Parameters | AL11: Advanced Parameters | AS11: Advanced Parameters | AZ11: Advanced Parameters | BG11: Advanced Parameters
B12: Value to 100% | C12: =IF(ISERROR((B4-F3/100)*B27),0,(B4-F3/100)*B27) -> 0 | E12: =IF(ISERROR((C4-F3/100)*B27),0,(C4-F3/100)*B27) -> 0 | R12: Value to 100% | S12: =IF(ISERROR((R4-V3/100)*R27),0,(R4-V3/100)*R27) -> 0 | Y12: Value to 100% | Z12: =IF(ISERROR((Y4-AC3/100)*Y27),0,(Y4-AC3/100)*Y27) -> 0 | AF12: Value to 100% | AG12: =IF(ISERROR((AF4-AJ3/100)*AF27),0,(AF4-AJ3/100)*AF27) -> 0 | AM12: Value to 100% | AN12: =IF(ISERROR((AM4-AQ3/100)*AM27),0,(AM4-AQ3/100)*AM27) -> -1.922023952 | AT12: Value to 100% | AU12: =IF(ISERROR((AT4-AX3/100)*AT27),0,(AT4-AX3/100)*AT27) -> 0 | BA12: Value to 100% | BB12: =IF(ISERROR((BA4-BE3/100)*BA27),0,(BA4-BE3/100)*BA27) -> -2.066970517 | BH12: Value to 100% | BI12: =IF(ISERROR((BH4-BL3/100)*BH27),0,(BH4-BL3/100)*BH27) -> 0
B13: Relative value | C13: =IF(B4<-100%,-100%,IF(B4>100%,100%,2*B4/1)) ->  | D13: ojo1, todo en porcentaje, por 2, y con 1 al final en lugar de 100. | E13: =IF(C4<-100%,-100%,IF(C4>100%,100%,2*C4/1)) ->  | I13: Todos los negritas tienen dato 50, en lugar de 100 para que la escala recorra menos. | R13: Relative value | S13: =IF(R4<-100%,-100%,IF(R4>100%,100%,2*R4/1)) ->  | Y13: Relative value | Z13: =IF(Y4<-100%,-100%,IF(Y4>100%,100%,2*Y4/1)) ->  | AF13: Relative value | AG13: =IF(AF4<-100%,-100%,IF(AF4>100%,100%,2*AF4/1)) ->  | AM13: Relative value | AN13: =IF(AM4<-100%,-100%,IF(AM4>100%,100%,2*AM4/1)) -> 0.07797604752 | AT13: Relative value | AU13: =IF(AT4<-100%,-100%,IF(AT4>100%,100%,2*AT4/1)) -> 1 | BA13: Relative value | BB13: =IF(BA4<-100%,-100%,IF(BA4>100%,100%,2*BA4/1)) -> -0.06697051653 | BH13: Relative value | BI13: =IF(BH4<-100%,-100%,IF(BH4>100%,100%,2*BH4/1)) -> 
A15: Angle | C15: =C13*PI()/2 ->  | E15: =E13*PI()/2 ->  | Q15: Angle | S15: =S13*PI()/2 ->  | X15: Angle | Z15: =Z13*PI()/2 ->  | AE15: Angle | AG15: =AG13*PI()/2 ->  | AL15: Angle | AN15: =AN13*PI()/2 -> 0.122484489 | AS15: Angle | AU15: =AU13*PI()/2 -> 1.570796327 | AZ15: Angle | BB15: =BB13*PI()/2 -> -0.1051970414 | BG15: Angle | BI15: =BI13*PI()/2 -> 
A16: x | B16: 0 | C16: =SIN(C15) ->  | D16: =B16 -> 0 | E16: =SIN(E15) ->  | Q16: x | R16: 0 | S16: =SIN(S15) ->  | X16: x | Y16: 0 | Z16: =SIN(Z15) ->  | AE16: x | AF16: 0 | AG16: =SIN(AG15) ->  | AL16: x | AM16: 0 | AN16: =SIN(AN15) -> 0.1221784574 | AS16: x | AT16: 0 | AU16: =SIN(AU15) -> 1 | AZ16: x | BA16: 0 | BB16: =SIN(BB15) -> -0.105003123 | BG16: x | BH16: 0 | BI16: =SIN(BI15) -> 
A17: y | B17: 0 | C17: =-COS(C15) ->  | D17: =B17 -> 0 | E17: =-COS(E15) ->  | Q17: y | R17: 0 | S17: =-COS(S15) ->  | X17: y | Y17: 0 | Z17: =-COS(Z15) ->  | AE17: y | AF17: 0 | AG17: =-COS(AG15) ->  | AL17: y | AM17: 0 | AN17: =-COS(AN15) -> -0.9925081483 | AS17: y | AT17: 0 | AU17: =-COS(AU15) -> -6.125742275e-17 | AZ17: y | BA17: 0 | BB17: =-COS(BB15) -> -0.9944718921 | BG17: y | BH17: 0 | BI17: =-COS(BI15) -> 
D19: Value | E19: Label
C20: 50 | D20: 0 | E20: 50
C21: =E21 -> 40 | D21: =D31/D33 -> 5 | E21: =E20+$B$26 -> 40
C22: =E22 -> 30 | D22: =D21 -> 5 | E22: =E21+$B$26 -> 30
C23: 20 | D23: =D22 -> 5 | E23: 20
A24: White | C24: 10 | D24: 5 | E24: 10 | Q24: White | X24: White | AE24: White | AL24: White | AS24: White | AZ24: White | BG24: White
A25: Total | B25: 50 | C25: 0 | D25: 5 | E25: 0 | Q25: Total | R25: 50 | X25: Total | Y25: 50 | AE25: Total | AF25: 50 | AL25: Total | AM25: 50 | AS25: Total | AT25: 50 | AZ25: Total | BA25: 50 | BG25: Total | BH25: 50
A26: Increment | B26: -10 | C26: -10 | D26: 5 | E26: -10 | Q26: Increment | R26: -10 | X26: Increment | Y26: -10 | AE26: Increment | AF26: -10 | AL26: Increment | AM26: -10 | AS26: Increment | AT26: -10 | AZ26: Increment | BA26: -10 | BG26: Increment | BH26: -10
A27: Conversion | B27: =100/B25 -> 2 | C27: -20 | D27: 5 | E27: -20 | Q27: Conversion | R27: =100/R25 -> 2 | X27: Conversion | Y27: =100/Y25 -> 2 | AE27: Conversion | AF27: =100/AF25 -> 2 | AL27: Conversion | AM27: =100/AM25 -> 2 | AS27: Conversion | AT27: =100/AT25 -> 2 | AZ27: Conversion | BA27: =100/BA25 -> 2 | BG27: Conversion | BH27: =100/BH25 -> 2
C28: -30 | D28: 5 | E28: -30
C29: -40 | D29: 5 | E29: -40
C30: -50 | D30: 5 | E30: -50
D31: 50
D33: 10
D35: =SUM(D20:D30) -> 50

Sheet empresa_ccaa
M3: =Dashboard!M3 -> 2022
M4: =Dashboard!M4 -> SEPTIEMBRE
K5: Empresa | L5: =L9 -> iEMPRESA
C9: Facturación, € | F9: ASEMPLEO | G9: ASEMPLEO | K9: Empresa = | L9: iEMPRESA
C10: Dato acumulado a | E10: =M4 -> SEPTIEMBRE | F10: =Dashboard!B7 -> 2021 | G10: =Dashboard!C7 -> 2022 | J10: Facturación | K10: =F10 -> 2021 | L10: =G10 -> 2022
H11: Estructura (%) | J11: Datos acumulados | M11: Estructura (%) | FQ11: check
F12: =E193 -> 2943385823 | G12: =B193 -> 3058142619 | H12: =G12/G$12 -> 1 | I12: TOTAL | K12: =SUM(K13:K29) -> 0 | L12: =SUM(L13:L29) -> 0 | M12: =L12/L$12 ->  | FQ12: =L12/K12-1 -> 
F13: =E194 -> 288385221.8 | G13: =B194 -> 278728568.1 | H13: =G13/G$12 -> 0.09114309004 | I13: ANDALUCIA | M13: =L13/L$12 ->  | FQ13: =L13/K13-1 -> 
F14: =E195 -> 146860336.8 | G14: =B195 -> 160364139 | H14: =G14/G$12 -> 0.05243841081 | I14: ARAGON | M14: =L14/L$12 ->  | FQ14: =L14/K14-1 -> 
F15: =E196 -> 56483788.24 | G15: =B196 -> 56515605.61 | H15: =G15/G$12 -> 0.01848036951 | I15: ASTURIAS | M15: =L15/L$12 ->  | FQ15: =L15/K15-1 -> 
F16: =E197 -> 9969665.208 | G16: =B197 -> 13221600.82 | H16: 0.004323408834 | I16: BALEARES | FQ16: =L16/K16-1 -> 
F17: =E198 -> 36432722.3 | G17: =B198 -> 65856290.37 | H17: 0.02153473483 | I17: CANARIAS | FQ17: =L17/K17-1 -> 
F18: =E199 -> 79128929.34 | G18: =B199 -> 67902006.94 | H18: 0.02220367569 | I18: CANTABRIA | FQ18: =L18/K18-1 -> 
F19: =E200 -> 182834678.1 | G19: =B200 -> 200241075.8 | H19: 0.06547800439 | I19: CASTILLA-LA MANCHA | FQ19: =L19/K19-1 -> 
F20: =E201 -> 159657917.7 | G20: =B201 -> 170327285.3 | H20: 0.05569631847 | I20: CASTILLA Y LEÓN | FQ20: =L20/K20-1 -> 
F21: =E202 -> 690151052.8 | G21: =B202 -> 688655281 | H21: 0.2251874313 | I21: CATALUÑA | M21: =L21/L$12 ->  | FQ21: =L21/K21-1 -> 
F22: =E203 -> 256334925.8 | G22: =B203 -> 283739192.1 | H22: 0.09278154338 | I22: COMUNIDAD VALENCIANA | FQ22: =L22/K22-1 -> 
F23: =E204 -> 38973092.7 | G23: =B204 -> 32927717.9 | H23: 0.01076722769 | I23: EXTREMADURA | FQ23: =L23/K23-1 -> 
F24: =E205 -> 110319987.6 | G24: =B205 -> 107430531.3 | H24: 0.03512933984 | I24: GALICIA | FQ24: =L24/K24-1 -> 
F25: =E206 -> 458794609.3 | G25: =B206 -> 485111695.7 | H25: 0.15862952 | I25: MADRID | FQ25: =L25/K25-1 -> 
F26: =E207 -> 201472138.7 | G26: =B207 -> 200496008.5 | H26: 0.0655613663 | I26: MURCIA | FQ26: =L26/K26-1 -> 
F27: =E208 -> 79759096.31 | G27: =B208 -> 92409335.33 | H27: 0.03021747081 | I27: NAVARRA | FQ27: =L27/K27-1 -> 
F28: =E209 -> 125374210.4 | G28: =B209 -> 131534736.2 | H28: 0.04301131521 | I28: PAIS VASCO | FQ28: =L28/K28-1 -> 
F29: =E210 -> 22453450.01 | G29: =B210 -> 22681549.49 | H29: 0.00741677296 | I29: RIOJA (LA) | FQ29: =L29/K29-1 -> 
A31: Fuente: Cifras consolidadas del sector. ASEMPLEO ©.
A32: Nota de Confidencialidad: Este informe comparativo se genera con los datos propios de la Empresa.
A188: D03: | D188: D03: | G188: D03 : | H188: Variación Interanual (%)
A189: MES: | B189: ACUMULADO A LA FECHA | D189: =A189 -> MES: | E189: =B189 -> ACUMULADO A LA FECHA | G189: =D189 -> MES: | H189: Tasa % i.a.
B191: Facturación | E191: Facturación | H191: Facturación
I192: check
A193: TOTAL | B193: 3058142619 | D193: TOTAL | E193: 2943385823 | G193: TOTAL | H193: 0.03898802376 | I193: =B193/E193-1 -> 0.03898802376
A194: ANDALUCIA | B194: 278728568.1 | D194: ANDALUCIA | E194: 288385221.8 | G194: ANDALUCIA | H194: -0.03348525826 | I194: =B194/E194-1 -> -0.03348525826
A195: ARAGON | B195: 160364139 | D195: ARAGON | E195: 146860336.8 | G195: ARAGON | H195: 0.0919499605 | I195: 0.0919499605
A196: ASTURIAS | B196: 56515605.61 | D196: ASTURIAS | E196: 56483788.24 | G196: ASTURIAS | H196: 0.0005633010659 | I196: 0.0005633010659
A197: BALEARES | B197: 13221600.82 | D197: BALEARES | E197: 9969665.208 | G197: BALEARES | H197: 0.3261830301 | I197: 0.3261830301
A198: CANARIAS | B198: 65856290.37 | D198: CANARIAS | E198: 36432722.3 | G198: CANARIAS | H198: 0.8076137659 | I198: 0.8076137659
A199: CANTABRIA | B199: 67902006.94 | D199: CANTABRIA | E199: 79128929.34 | G199: CANTABRIA | H199: -0.1418813889 | I199: -0.1418813889
A200: CASTILLA-LA MANCHA | B200: 200241075.8 | D200: CASTILLA-LA MANCHA | E200: 182834678.1 | G200: CASTILLA-LA MANCHA | H200: 0.095202934 | I200: 0.095202934
A201: CASTILLA Y LEÓN | B201: 170327285.3 | D201: CASTILLA Y LEÓN | E201: 159657917.7 | G201: CASTILLA Y LEÓN | H201: 0.06682642304 | I201: 0.06682642304
A202: CATALUÑA | B202: 688655281 | D202: CATALUÑA | E202: 690151052.8 | G202: CATALUÑA | H202: -0.002167310738 | I202: -0.002167310738
A203: COMUNIDAD VALENCIANA | B203: 283739192.1 | D203: COMUNIDAD VALENCIANA | E203: 256334925.8 | G203: COMUNIDAD VALENCIANA | H203: 0.1069080472 | I203: 0.1069080472
A204: EXTREMADURA | B204: 32927717.9 | D204: EXTREMADURA | E204: 38973092.7 | G204: EXTREMADURA | H204: -0.15511663 | I204: -0.15511663
A205: GALICIA | B205: 107430531.3 | D205: GALICIA | E205: 110319987.6 | G205: GALICIA | H205: -0.02619159355 | I205: -0.02619159355
A206: MADRID | B206: 485111695.7 | D206: MADRID | E206: 458794609.3 | G206: MADRID | H206: 0.05736136797 | I206: 0.05736136797
A207: MURCIA | B207: 200496008.5 | D207: MURCIA | E207: 201472138.7 | G207: MURCIA | H207: -0.004844988789 | I207: -0.004844988789
A208: NAVARRA | B208: 92409335.33 | D208: NAVARRA | E208: 79759096.31 | G208: NAVARRA | H208: 0.1586055962 | I208: 0.1586055962
A209: PAIS VASCO | B209: 131534736.2 | D209: PAIS VASCO | E209: 125374210.4 | G209: PAIS VASCO | H209: 0.04913710501 | I209: 0.04913710501
A210: RIOJA (LA) | B210: 22681549.49 | D210: RIOJA (LA) | E210: 22453450.01 | G210: RIOJA (LA) | H210: 0.01015877193 | I210: =B210/E210-1 -> 0.01015877193
A211: Ceuta y Melilla | D211: Ceuta y Melilla | G211: Ceuta y Melilla
